bitfinex/quotes_SOLUSD_20240926
["timestamp","ask_amount","ask_price","bid_price","bid_amount"]
[1727390188185,12.8325,156.29,156.24,6.4003]
[1727390188357,6.3987,156.28,156.24,18.22219624]
[1727390189455,12.8322,156.29,156.24,18.22219624]
[1727390195588,6.3984,156.29,156.24,18.22219624]
[1727390197478,6.3989,156.28,156.24,18.22219624]
[1727390198273,6.3989,156.28,156.24,6.4003]
[1727390198588,16.0384549,156.3,156.22,27.82419624]
[1727390198790,6.3993,156.27,156.22,34.22499624]
[1727390199089,16.0384549,156.3,156.19,32.0117]
[1727390199090,6.4,156.25,156.21,6.4015]
[1727390199347,0.12549,156.27,156.17,0.2530498]
[1727390199626,6.4013,156.22,156.17,0.2530498]
[1727390199963,6.4013,156.22,156.17,6.6560498]
[1727390200993,6.5614,156.24,156.17,0.2530498]
[1727390201177,6.4017,156.21,156.17,0.2530498]
[1727390205203,6.402,156.2,156.17,0.2530498]
[1727390205793,6.4028,156.18,156.17,0.2530498]
[1727390206829,15.8731,156.21,156.17,0.2530498]
[1727390207007,6.4025,156.19,156.17,0.2530498]
[1727390209991,14.7756,156.21,156.17,0.2530498]
[1727390211395,6.4025,156.19,156.17,0.2530498]
[1727390213512,14.7756,156.21,156.17,0.2530498]
[1727390213821,21.1772,156.21,156.17,0.2530498]
[1727390214216,6.4013,156.22,156.17,0.2530498]
[1727390214505,6.4008,156.23,156.18,18.22439624]
[1727390214810,13.25679274,156.24,156.18,18.22439624]
[1727390215003,6.4012,156.22,156.18,18.22439624]
[1727390215589,13.25679274,156.24,156.18,11.82189624]
[1727390215799,6.4008,156.23,156.19,6.4024]
[1727390220798,6.69539274,156.24,156.19,6.4024]
[1727390221596,6.69539274,156.24,156.18,16.0063]
[1727390221810,6.4015,156.22,156.18,16.0063]
[1727390222007,6.4016,156.21,156.17,6.6562498]
[1727390222506,6.4016,156.21,156.17,0.2530498]
[1727390223921,6.4022,156.2,156.17,0.2530498]
[1727390225513,6.69539274,156.24,156.17,0.2530498]
[1727390225724,6.4012,156.22,156.17,6.6560498]
[1727390229607,6.4012,156.22,156.17,18.47794604]
[1727390229915,6.4008,156.23,156.18,1.28048051]
[1727390230107,6.4005,156.24,156.19,6.4022]
[1727390231646,6.4009,156.23,156.19,6.4022]
[1727390232011,6.4009,156.23,156.18,6.4027]
[1727390232214,6.4014,156.22,156.17,34.48564604]
[1727390233526,0.12549,156.25,156.17,22.6637498]
[1727390233527,6.4017,156.21,156.17,22.6637498]
[1727390234994,6.4013,156.22,156.17,22.6637498]
[1727390236526,6.4008,156.23,156.19,18.22429624]
[1727390237730,6.4004,156.24,156.19,18.22429624]
[1727390238340,6.68694632,156.26,156.19,18.22429624]
[1727390238352,6.4008,156.23,156.19,18.22429624]
[1727390239522,6.68694632,156.26,156.19,18.22429624]
[1727390239837,6.4004,156.24,156.2,1.28030808]
[1727390240430,6.4004,156.24,156.2,7.68230808]
[1727390240827,6.4,156.25,156.2,7.68230808]
[1727390241166,6.4,156.25,156.2,6.402]
[1727390243523,6.68694632,156.26,156.19,16.0491]
[1727390243706,6.4012,156.22,156.17,6.4152498]
[1727390243912,6.4012,156.22,156.17,12.8183498]
[1727390248740,6.68694632,156.26,156.17,6.6561498]
[1727390248950,6.4027,156.19,156.17,0.2530498]
[1727390254466,6.4021,156.2,156.17,0.2530498]
[1727390254667,0.12549,156.23,156.17,0.2530498]
[1727390254668,6.4017,156.21,156.17,0.2530498]
[1727390255769,0.12549,156.23,156.17,0.2530498]
[1727390256063,6.4013,156.22,156.18,6.4027]
[1727390256668,6.69595347,156.24,156.19,6.4023]
[1727390256972,6.4009,156.23,156.18,18.22469624]
[1727390257139,6.4009,156.23,156.18,19.50504376]
[1727390257337,6.4009,156.23,156.18,18.22469624]
[1727390259648,6.69595347,156.24,156.21,6.4015]
[1727390259848,6.3996,156.26,156.22,6.4012]
[1727390260438,6.3996,156.26,156.2,34.22759624]
[1727390260941,6.3996,156.26,156.21,6.4015]
[1727390261966,6.3988,156.28,156.23,6.4007]
[1727390263075,6.3991,156.27,156.22,19.50314638]
[1727390263264,6.3991,156.27,156.22,18.22299624]
[1727390266275,6.3988,156.28,156.23,7.68078065]
[1727390266460,6.3988,156.28,156.24,11.82189624]
[1727390267408,0.1142549,156.3,156.24,27.18729624]
[1727390267762,0.1142549,156.3,156.26,18.22139624]
[1727390268864,6.5124549,156.3,156.26,11.82189624]
[1727390269067,6.3984,156.29,156.25,15.9999]
[1727390269276,6.3988,156.28,156.24,21.6308]
[1727390270162,0.1142549,156.3,156.23,6.4007]
[1727390270363,0.1142549,156.3,156.24,6.4003]
[1727390270364,6.3986,156.29,156.24,6.4003]
[1727390273382,6.3986,156.29,156.25,6.3999]
[1727390274372,6.3986,156.29,156.24,18.22219624]
[1727390274585,6.5122549,156.3,156.25,6.3998]
[1727390275595,6.3984,156.29,156.25,6.3998]
[1727390276897,0.1142549,156.3,156.26,19.50116132]
[1727390278222,0.1142549,156.3,156.27,6.399]
[1727390280669,0.1142549,156.3,156.26,18.22139624]
[1727390280874,0.1142549,156.3,156.26,13.10160394]
[1727390281080,0.1142549,156.3,156.27,6.3988]
[1727390281394,0.1142549,156.3,156.27,7.67848387]
[1727390285403,0.1142549,156.3,156.26,27.81999624]
[1727390285896,0.1142549,156.3,156.26,34.21949624]
[1727390286197,6.3984,156.29,156.25,15.0253]
[1727390286410,0.1142549,156.3,156.23,22.4024]
[1727390286617,0.1142549,156.3,156.21,6.1637]
[1727390286618,6.3995,156.27,156.21,22.4817]
[1727390286777,6.3995,156.27,156.22,11.82189624]
[1727390287506,6.3988,156.28,156.23,1.28007012]
[1727390287799,0.1142549,156.3,156.21,16.0802]
[1727390287984,6.3996,156.26,156.21,22.4817]
[1727390288651,6.4001,156.25,156.2,34.22879624]
[1727390288984,6.4004,156.24,156.2,16.005]
[1727390289983,6.4,156.25,156.2,16.005]
[1727390290396,6.4005,156.24,156.18,17.98559624]
[1727390290600,0.12549,156.26,156.17,0.2530498]
[1727390290886,6.4024,156.2,156.17,0.2530498]
[1727390291101,6.4016,156.21,156.17,0.2530498]
[1727390292278,6.402,156.2,156.17,0.2530498]
[1727390292483,6.4025,156.19,156.17,0.2530498]
[1727390292692,6.4019,156.21,156.17,0.2530498]
[1727390293417,6.402,156.2,156.17,0.2530498]
[1727390293578,0.12549,156.22,156.17,0.2530498]
[1727390293794,6.402,156.2,156.17,0.2530498]
[1727390295102,6.402,156.21,156.17,0.2530498]
[1727390295294,6.4021,156.2,156.17,0.2530498]
[1727390295493,6.4024,156.19,156.17,0.2530498]
[1727390297990,6.69713811,156.24,156.17,0.2530498]
[1727390298199,6.4008,156.23,156.17,6.6559498]
[1727390298514,6.4008,156.23,156.17,1.53351373]
[1727390298891,6.4008,156.23,156.18,6.4027]
[1727390299103,6.4008,156.23,156.19,1.28041742]
[1727390299401,6.4003,156.25,156.19,7.68271742]
[1727390300892,6.4004,156.24,156.19,7.68271742]
[1727390305692,6.69608606,156.27,156.2,11.82189624]
[1727390305895,0.12549,156.29,156.21,1.2801616]
[1727390307022,6.3999,156.26,156.21,7.6816616]
[1727390307209,6.3992,156.27,156.22,6.4012]
[1727390307415,0.1142549,156.3,156.24,11.82189624]
[1727390307915,6.3988,156.28,156.24,11.82189624]
[1727390308321,6.3983,156.29,156.24,18.22229624]
[1727390313035,0.1142549,156.3,156.24,11.82189624]
[1727390313215,6.3987,156.28,156.23,18.22269624]
[1727390313616,6.3987,156.28,156.23,19.50268217]
[1727390315138,0.1142549,156.3,156.25,11.82189624]
[1727390315339,6.5122549,156.3,156.25,18.22149624]
[1727390316316,0.1142549,156.3,156.26,6.3995]
[1727390317543,0.1142549,156.3,156.27,6.399]
[1727390318316,0.1142549,156.3,156.24,31.1445]
[1727390318525,6.5125549,156.3,156.25,6.3995]
[1727390327956,6.5125549,156.3,156.24,42.96639624]
[1727390327957,0.1142549,156.3,156.27,6.399]
[1727390329741,0.1142549,156.3,156.28,19.50029176]
[1727390330851,0.1142549,156.3,156.28,18.22059624]
[1727390333253,0.1142549,156.3,156.29,1.27957573]
[1727390333829,0.1142549,156.3,156.29,7.67787573]
[1727390335558,0.1142549,156.3,156.29,6.3983]
[1727390344236,0.1142549,156.3,156.27,6.3991]
[1727390347162,0.1142549,156.3,156.27,7.67873063]
[1727390348254,0.1142549,156.3,156.24,15.1442]
[1727390348443,0.1142549,156.3,156.23,11.82189624]
[1727390348764,0.1142549,156.3,156.25,6.3999]
[1727390348765,6.5122549,156.3,156.25,6.3999]
[1727390349060,0.1142549,156.3,156.26,7.67919941]
[1727390350184,0.1142549,156.3,156.26,6.3994]
[1727390353571,0.1142549,156.3,156.26,7.6791722]
[1727390354461,0.1142549,156.3,156.26,6.3994]
[1727390358187,6.5124549,156.3,156.25,22.3996]
[1727390358489,6.5124549,156.3,156.25,15.9997]
[1727390358490,6.3984,156.29,156.25,15.9997]
[1727390358660,6.3984,156.29,156.25,22.3996]
[1727390361065,0.1142549,156.3,156.25,22.3996]
[1727390361264,6.5122549,156.3,156.25,22.3996]
[1727390361565,6.5122549,156.3,156.26,7.6793571]
[1727390361892,0.1142549,156.3,156.26,7.6793571]
[1727390362392,0.1142549,156.3,156.26,6.3995]
[1727390362793,0.1142549,156.3,156.26,7.67926955]
[1727390363099,0.1142549,156.3,156.26,6.3995]
[1727390363594,0.1142549,156.3,156.28,6.3987]
[1727390363764,0.1142549,156.3,156.27,7.67876426]
[1727390363969,0.1142549,156.3,156.27,6.399]
[1727390370893,6.3992,156.27,156.22,22.4035]
[1727390371189,6.3987,156.28,156.23,6.4007]
[1727390373678,6.3992,156.27,156.22,22.4037]
[1727390377799,6.3996,156.26,156.22,16.0026]
[1727390379277,0.12549,156.28,156.22,29.10463112]
[1727390379485,6.3987,156.28,156.23,6.4007]
[1727390381812,6.3992,156.27,156.22,22.4038]
[1727390387718,15.3949,156.29,156.22,22.4038]
[1727390387882,100.225707,182.0,156.22,22.4038]
[1727390387883,0.1142549,156.4,156.29,21.7941]
[1727390388079,0.2530498,156.43,156.41,15.9832]
[1727390388296,0.331054,156.48,156.42,1.27829032]
[1727390388500,0.331054,156.48,156.44,18.21399624]
[1727390388693,0.331054,156.48,156.42,6.3926]
[1727390388880,0.331054,156.48,156.41,15.9832]
[1727390389387,0.331054,156.48,156.44,7.86431448]
[1727390389719,0.331054,156.48,156.45,28.82795024]
[1727390389878,0.331054,156.48,156.45,6.3917]
[1727390390201,0.331054,156.48,156.46,41.63849309]
[1727390390375,0.331054,156.48,156.47,12.8112279]
[1727390390575,0.331054,156.48,156.46,28.82726519]
[1727390391204,0.12549,156.47,156.46,28.82726519]
[1727390395493,0.331054,156.48,156.46,28.82726519]
[1727390399094,0.331054,156.48,156.43,6.3924]
[1727390400116,0.12549,156.47,156.41,15.9832]
[1727390400315,0.12549,156.45,156.4,6.3938]
[1727390400697,0.331054,156.48,156.43,18.21439624]
[1727390400999,0.331054,156.48,156.45,11.82189624]
[1727390401201,0.331054,156.48,156.43,11.82189624]
[1727390401404,6.391,156.47,156.42,11.82189624]
[1727390401620,0.331054,156.48,156.42,11.82189624]
[1727390401621,6.721654,156.48,156.42,18.21479624]
[1727390402502,6.51659,156.47,156.42,11.82189624]
[1727390402728,6.3919,156.45,156.39,6.3941]
[1727390403302,6.3914,156.46,156.41,6.3934]
[1727390403503,6.3914,156.46,156.4,11.82189624]
[1727390404901,0.12549,156.45,156.37,22.3815]
[1727390405116,6.3927,156.43,156.38,6.3946]
[1727390405307,22.47099,156.45,156.39,18.21609624]
[1727390406224,6.3922,156.44,156.39,11.82189624]
[1727390406405,6.3927,156.43,156.38,6.3946]
[1727390408220,6.3927,156.43,156.39,11.82189624]
[1727390409703,6.3927,156.43,156.38,6.3946]
[1727390410617,6.3927,156.43,156.37,27.80869624]
[1727390410823,6.3927,156.43,156.37,34.20369624]
[1727390411429,6.393,156.42,156.37,34.20369624]
[1727390411625,6.393,156.42,156.37,27.80869624]
[1727390411805,6.393,156.42,156.37,34.20369624]
[1727390422130,6.393,156.42,156.37,22.3818]
[1727390426222,0.12549,156.44,156.35,6.3955]
[1727390426535,6.3939,156.4,156.35,6.3955]
[1727390426925,0.12549,156.44,156.36,6.3953]
[1727390426926,6.3935,156.41,156.36,6.3953]
[1727390427235,6.3935,156.41,156.36,18.21719624]
[1727390428812,6.3935,156.41,156.34,47.9717]
[1727390428813,6.3945,156.39,156.34,22.3866]
[1727390430049,6.68920597,156.45,156.37,11.82189624]
[1727390430222,13.08130597,156.45,156.39,18.21609624]
[1727390430547,21.7955,156.46,156.37,6.3948]
[1727390430733,6.3926,156.43,156.37,18.21669624]
[1727390431124,6.3926,156.43,156.38,6.3946]
[1727390431931,0.12549,156.42,156.38,6.3946]
[1727390433626,6.3926,156.43,156.38,6.3946]
[1727390435453,6.393,156.42,156.37,6.3949]
[1727390437560,6.3926,156.43,156.36,29.08938579]
[1727390437856,6.3926,156.43,156.38,6.3946]
[1727390445839,0.12549,156.45,156.38,6.3946]
[1727390446052,6.393,156.42,156.37,6.395]
[1727390451539,0.12549,156.43,156.36,15.9886]
[1727390451739,6.3943,156.39,156.33,15.9915]
[1727390451933,6.3939,156.4,156.35,6.3957]
[1727390452957,6.3944,156.39,156.34,6.3962]
[1727390456250,6.51929,156.41,156.36,6.3954]
[1727390457356,6.3938,156.4,156.36,6.3954]
[1727390457670,6.51899,156.41,156.36,6.3954]
[1727390458272,6.51899,156.41,156.36,7.67437374]
[1727390458479,6.51899,156.41,156.36,6.3954]
[1727390458769,0.12549,156.41,156.35,11.82189624]
[1727390459150,6.3943,156.39,156.35,11.82189624]
[1727390460750,6.3939,156.4,156.35,19.49681245]
[1727390460963,6.3939,156.4,156.35,18.21769624]
[1727390461551,6.3939,156.4,156.36,6.3954]
[1727390464282,6.3943,156.39,156.34,6.3962]
[1727390466577,6.3943,156.39,156.35,8.31476168]
[1727390466765,6.3943,156.39,156.34,6.3962]
[1727390466963,6.3943,156.39,156.35,8.31448201]
[1727390467162,6.3943,156.39,156.34,6.3962]
[1727390468864,6.3943,156.39,156.33,27.81339624]
[1727390469065,6.3943,156.39,156.35,6.3958]
[1727390471075,6.68897888,156.43,156.38,15.9866]
[1727390471381,29.076,156.45,156.4,6.3938]
[1727390471859,28.976,156.45,156.4,6.3938]
[1727390472679,6.3922,156.44,156.4,6.3938]
[1727390473076,6.3922,156.44,156.39,11.82189624]
[1727390473285,0.12549,156.44,156.38,15.9866]
[1727390473469,6.3928,156.43,156.38,22.3812]
[1727390473669,6.3931,156.42,156.38,15.9866]
[1727390475762,6.3931,156.42,156.38,22.3812]
[1727390476463,6.51779,156.44,156.39,6.3942]
[1727390476657,22.5839,156.45,156.38,17.26532571]
[1727390477001,22.5839,156.45,156.4,6.3937]
[1727390477873,28.9757,156.45,156.4,6.3937]
[1727390480360,6.3923,156.44,156.4,6.3937]
[1727390480783,6.3931,156.42,156.38,15.9866]
[1727390480986,0.12549,156.44,156.38,15.9866]
[1727390481292,6.3927,156.43,156.38,34.20299624]
[1727390483580,6.3927,156.43,156.39,6.3941]
[1727390483988,28.976,156.45,156.4,6.3937]
[1727390484368,28.976,156.45,156.41,6.3934]
[1727390484891,16.308254,156.48,156.42,29.08212756]
[1727390484892,0.331054,156.48,156.42,29.08212756]
[1727390485071,0.331054,156.48,156.45,6.3917]
[1727390486864,0.331054,156.48,156.45,7.66995059]
[1727390487287,0.331054,156.48,156.45,6.3917]
[1727390488369,0.331054,156.48,156.44,22.3718]
[1727390489490,0.331054,156.48,156.44,15.9797]
[1727390489671,0.331054,156.48,156.46,6.3912]
[1727390489869,0.331054,156.48,156.47,6.391]
[1727390490283,0.331054,156.48,156.46,18.21319624]
[1727390490666,0.331054,156.48,156.46,6.3913]
[1727390490986,0.331054,156.48,156.45,6.3917]
[1727390491995,0.331054,156.48,156.44,34.19369624]
[1727390492967,0.331054,156.48,156.44,22.3718]
[1727390499779,6.391,156.47,156.43,6.3925]
[1727390500173,6.391,156.47,156.41,27.80519624]
[1727390500487,6.391,156.47,156.42,6.393]
[1727390501498,0.331054,156.48,156.43,6.3925]
[1727390501499,6.721654,156.48,156.43,6.3925]
[1727390501994,6.721654,156.48,156.43,18.21439624]
[1727390502872,0.12549,156.47,156.41,15.9833]
[1727390503182,6.3915,156.46,156.41,22.3767]
[1727390505233,6.3918,156.45,156.41,15.9833]
[1727390505526,6.3922,156.44,156.39,6.3942]
[1727390505832,6.3922,156.44,156.38,6.3946]
[1727390506001,6.3922,156.44,156.39,6.394]
[1727390506532,6.3918,156.45,156.4,6.3938]
[1727390507630,6.3922,156.44,156.39,18.21609624]
[1727390507843,6.3939,156.4,156.35,10.36220951]
[1727390508027,6.3939,156.4,156.35,6.3957]
[1727390509232,6.3935,156.41,156.35,7.67466581]
[1727390509434,6.3935,156.41,156.35,6.3957]
[1727390510006,6.394,156.4,156.34,34.20879624]
[1727390510308,6.394,156.4,156.35,6.3958]
[1727390510507,6.394,156.4,156.35,7.67482511]
[1727390511426,6.394,156.4,156.35,6.3958]
[1727390512327,6.394,156.4,156.35,7.67478471]
[1727390513015,6.394,156.4,156.36,6.3954]
[1727390517130,6.5562,156.41,156.37,6.3949]
[1727390517443,16.2901,156.43,156.39,6.3942]
[1727390517601,22.6827,156.43,156.39,6.3942]
[1727390517806,12.6786,156.45,156.4,18.21539624]
[1727390519819,22.8605,156.47,156.42,18.21479624]
[1727390520213,6.391,156.47,156.42,18.21479624]
[1727390520420,6.721654,156.48,156.43,7.67091359]
[1727390520636,6.721654,156.48,156.44,11.82189624]
[1727390522113,0.331054,156.48,156.45,1.27824563]
[1727390522318,0.331054,156.48,156.43,15.9813]
[1727390522520,6.391,156.47,156.43,15.9813]
[1727390523326,6.721654,156.48,156.43,23.65208144]
[1727390523720,6.721654,156.48,156.44,11.82189624]
[1727390523947,0.331054,156.48,156.45,1.27831527]
[1727390524117,0.331054,156.48,156.42,11.82189624]
[1727390524439,6.391,156.47,156.42,18.21479624]
[1727390524646,6.391,156.47,156.42,19.49320987]
[1727390524943,0.331054,156.48,156.44,11.82189624]
[1727390525846,0.331054,156.48,156.42,15.9817]
[1727390526038,6.391,156.47,156.42,23.65314417]
[1727390526645,6.3918,156.45,156.4,6.3938]
[1727390526843,6.3918,156.45,156.4,18.21569624]
[1727390528341,6.3918,156.45,156.37,16.1445]
[1727390528342,0.12549,156.44,156.37,16.1445]
[1727390528528,6.3934,156.42,156.37,18.21689624]
[1727390529443,6.3926,156.43,156.38,6.3946]
[1727390529622,6.3931,156.42,156.37,18.21689624]
[1727390532544,50.12549,156.45,156.33,16.1445]
[1727390532861,6.3939,156.4,156.35,6.3957]
[1727390535454,6.3937,156.41,156.36,19.49627993]
[1727390535673,6.3937,156.41,156.36,18.21729624]
[1727390539672,6.3942,156.4,156.35,6.3958]
[1727390539875,6.3942,156.39,156.35,6.3958]
[1727390540175,6.3951,156.37,156.33,15.9915]
[1727390540373,81.46139,156.4,156.3,24.29660461]
[1727390540579,81.46139,156.4,156.29,6.3983]
[1727390540580,6.3964,156.34,156.29,6.3983]
[1727390540751,81.46139,156.4,156.3,8.30327016]
[1727390540952,6.3959,156.35,156.3,19.49922299]
[1727390542661,6.3959,156.35,156.3,27.80017988]
[1727390544062,6.3959,156.35,156.3,19.49922299]
[1727390545573,38.03020061,156.4,156.31,6.6504498]
[1727390545776,22.04490061,156.4,156.33,15.991]
[1727390545995,15.3506,156.4,156.33,15.991]
[1727390546286,6.395,156.38,156.33,22.3876]
[1727390548189,6.3952,156.37,156.33,15.991]
[1727390549463,6.3946,156.38,156.33,23.66682343]
[1727390550081,6.3946,156.38,156.33,22.3876]
[1727390550463,15.3506,156.4,156.34,11.82189624]
[1727390550464,6.3942,156.4,156.34,11.82189624]
[1727390550664,6.3946,156.38,156.34,11.82189624]
[1727390550889,6.3946,156.38,156.33,22.3876]
[1727390551068,6.3946,156.38,156.34,6.3962]
[1727390551573,6.3946,156.38,156.34,7.67529179]
[1727390552176,6.3946,156.38,156.34,6.3962]
[1727390553960,6.3951,156.37,156.33,22.3877]
[1727390554769,6.3951,156.37,156.33,15.991]
[1727390555087,6.3956,156.36,156.31,6.6504498]
[1727390556876,6.3956,156.36,156.32,6.397]
[1727390558293,6.3956,156.36,156.32,18.21889624]
[1727390558696,16.10969,156.41,156.32,18.21889624]
[1727390558886,6.3951,156.37,156.32,18.21889624]
[1727390559691,6.3951,156.37,156.31,1.53235905]
[1727390559692,6.3955,156.36,156.31,6.6504498]
[1727390559892,6.3955,156.36,156.31,18.47234604]
[1727390561299,6.3955,156.36,156.31,19.75166138]
[1727390561501,6.3955,156.36,156.31,18.47234604]
[1727390562876,6.3955,156.36,156.31,19.75166327]
[1727390564111,6.3955,156.36,156.32,6.397]
[1727390565505,6.3955,156.36,156.31,6.6504498]
[1727390566076,0.12549,156.38,156.31,0.2530498]
[1727390566282,6.397,156.33,156.31,0.2530498]
[1727390566779,6.3963,156.34,156.31,0.2530498]
[1727390567992,32.47719,156.38,156.31,0.2530498]
[1727390568305,6.3959,156.35,156.31,0.2530498]
[1727390569207,6.3959,156.35,156.31,6.6504498]
[1727390569507,6.3955,156.36,156.31,6.6504498]
[1727390570500,6.3955,156.36,156.32,7.67643904]
[1727390570706,6.3955,156.36,156.32,6.3971]
[1727390571584,6.3955,156.36,156.31,6.6504498]
[1727390573181,6.3955,156.36,156.32,6.397]
[1727390573598,6.3949,156.38,156.34,6.3963]
[1727390573909,6.3951,156.37,156.32,11.82189624]
[1727390574403,6.3955,156.36,156.32,11.82189624]
[1727390574604,6.3955,156.36,156.32,13.1011524]
[1727390575589,6.3955,156.36,156.32,11.82189624]
[1727390576292,6.3955,156.36,156.32,13.10115424]
[1727390579192,6.3955,156.36,156.32,11.82189624]
[1727390579701,6.396,156.35,156.31,22.6431498]
[1727390579888,6.3955,156.36,156.32,1.27930831]
[1727390580398,15.984,156.41,156.31,16.2460498]
[1727390580604,6.3951,156.37,156.32,26.54777696]
[1727390580791,6.3951,156.37,156.32,18.21869624]
[1727390581110,15.984,156.41,156.31,16.2460498]
[1727390581111,6.3955,156.36,156.31,22.6434498]
[1727390583511,6.3955,156.36,156.32,1.27922676]
[1727390584311,0.12549,156.4,156.33,1.27921089]
[1727390584512,6.3951,156.37,156.33,1.27921089]
[1727390584990,6.3951,156.37,156.32,6.3969]
[1727390586312,6.3951,156.37,156.33,1.27918355]
[1727390586706,6.3951,156.37,156.32,6.3969]
[1727390590815,6.3951,156.37,156.33,1.27918382]
[1727390591606,6.3955,156.36,156.32,6.3969]
[1727390592316,6.3955,156.36,156.33,1.2791949]
[1727390592617,6.3955,156.36,156.32,6.3969]
[1727390593414,6.3955,156.36,156.33,1.279194]
[1727390595620,15.984,156.41,156.33,1.279194]
[1727390595621,6.3954,156.37,156.33,1.279194]
[1727390595920,6.3954,156.37,156.32,6.3969]
[1727390596709,6.3956,156.36,156.32,6.3969]
[1727390597211,6.3956,156.36,156.31,22.6434498]
[1727390600421,15.984,156.41,156.32,1.2791886]
[1727390600600,6.3951,156.37,156.32,7.6758886]
[1727390600805,6.3951,156.37,156.32,6.3967]
[1727390601900,6.3951,156.37,156.33,1.27913883]
[1727390603127,6.3955,156.36,156.32,6.3967]
[1727390603720,6.3952,156.37,156.32,6.3967]
[1727390608222,6.69335358,156.41,156.33,17.27027012]
[1727390608423,0.12549,156.41,156.33,15.9912]
[1727390608605,6.69280097,156.41,156.33,15.9912]
[1727390609528,6.3948,156.38,156.33,22.3878]
[1727390609930,6.3948,156.38,156.34,1.27900839]
[1727390610518,6.3948,156.38,156.33,22.3878]
[1727390610717,6.3948,156.38,156.34,1.27900532]
[1727390611026,6.3948,156.38,156.33,22.3878]
[1727390613244,6.3942,156.39,156.34,34.79639624]
[1727390615437,38.73884986,156.44,156.34,34.79639624]
[1727390615438,32.0463,156.44,156.34,28.40019624]
[1727390615630,6.3935,156.41,156.37,6.395]
[1727390615817,6.3935,156.41,156.36,18.21719624]
[1727390616012,6.3935,156.41,156.37,1.27871869]
[1727390616218,6.3935,156.41,156.36,18.21719624]
[1727390619442,6.3935,156.41,156.37,6.395]
[1727390620462,6.3935,156.41,156.38,1.27871816]
[1727390621042,6.3935,156.41,156.37,6.395]
[1727390628554,15.9807,156.44,156.36,11.82189624]
[1727390628747,6.3939,156.4,156.36,11.82189624]
[1727390630545,6.3935,156.41,156.36,18.21709624]
[1727390636755,6.69080554,156.45,156.39,11.82189624]
[1727390636947,6.69080554,156.45,156.42,11.82189624]
[1727390637147,6.69080554,156.45,156.43,1.27835463]
[1727390637373,6.3911,156.47,156.43,1.27835463]
[1727390639040,6.3911,156.47,156.42,18.21479624]
[1727390639748,6.3911,156.47,156.43,1.27830067]
[1727390640462,0.2530498,156.48,156.43,1.27830067]
[1727390640663,6.6436498,156.48,156.44,11.82189624]
[1727390640862,6.6436498,156.48,156.45,1.27820571]
[1727390643346,6.6436498,156.48,156.44,11.82189624]
[1727390643552,6.6436498,156.48,156.45,1.27821288]
[1727390645454,0.2530498,156.48,156.45,1.27821288]
[1727390647145,0.2530498,156.48,156.44,18.21369624]
[1727390647344,0.2530498,156.48,156.45,1.27807673]
[1727390647869,0.2530498,156.48,156.44,18.21369624]
[1727390648272,6.6439498,156.48,156.44,11.82189624]
[1727390649046,6.3913,156.47,156.43,27.80279624]
[1727390649269,0.2530498,156.48,156.4,39.0118]
[1727390649270,6.3921,156.45,156.4,39.0118]
[1727390649469,6.3921,156.45,156.41,6.3934]
[1727390650448,6.3915,156.46,156.41,6.3933]
[1727390653074,6.3915,156.46,156.42,1.27833012]
[1727390653465,0.2530498,156.48,156.42,13.10022636]
[1727390653770,0.2530498,156.48,156.4,16.634]
[1727390653771,0.2530498,156.48,156.47,6.391]
[1727390654074,0.2530498,156.48,156.47,7.66886409]
[1727390655676,0.2530498,156.48,156.47,6.391]
[1727390656383,0.2530498,156.48,156.47,7.668866]
[1727390657484,0.2530498,156.48,156.47,7.66871168]
[1727390657858,0.2530498,156.48,156.47,6.391]
[1727390658358,0.2530498,156.48,156.47,7.66885766]
[1727390660686,0.2530498,156.48,156.47,6.51649]
[1727390661592,0.2530498,156.48,156.47,6.391]
[1727390662089,0.2530498,156.48,156.47,7.66863582]
[1727390662265,0.2265745,156.5,156.49,6.3901]
[1727390662473,0.2530498,156.52,156.51,6.3893]
[1727390662769,0.2530498,156.52,156.51,35.89728159]
[1727390663494,0.2530498,156.52,156.51,36.02277159]
[1727390665378,0.2530498,156.52,156.51,34.61999624]